bitfinex/quotes_BTCUSD_20260215
["timestamp","ask_amount","ask_price","bid_price","bid_amount"]
[1771129137269,0.04199444,70382.0,70378.0,0.07104459]
[1771129137469,0.03599444,70382.0,70378.0,0.07104459]
[1771129137709,0.03599444,70382.0,70374.0,0.07104842]
[1771129137710,0.04199444,70382.0,70374.0,0.07104842]
[1771129137885,0.04199444,70382.0,70372.0,0.28420093]
[1771129138244,0.04199444,70382.0,70370.0,0.28432798]
[1771129138377,0.04199444,70382.0,70376.0,0.07104618]
[1771129138584,0.04199444,70382.0,70377.0,0.07104511]
[1771129139179,0.04199444,70382.0,70375.0,0.0710477]
[1771129139352,0.03599444,70382.0,70375.0,0.0710477]
[1771129139709,0.04199444,70382.0,70375.0,0.0710477]
[1771129139909,0.03599444,70382.0,70381.0,0.0710419]
[1771129140486,0.28227444,70387.0,70379.0,0.07104319]
[1771129140693,0.07104134,70382.0,70370.0,0.00012]
[1771129140903,0.07103988,70383.0,70376.0,0.07104649]
[1771129141073,0.28227444,70387.0,70370.0,0.00055339]
[1771129141271,0.0710471,70376.0,70370.0,0.00055339]
[1771129141675,0.02444273,70374.0,70370.0,0.00055339]
[1771129142078,0.07105084,70373.0,70370.0,0.00055339]
[1771129142279,0.02444273,70372.0,70370.0,1e-08]
[1771129143284,0.00012,70380.0,70370.0,1e-08]
[1771129143492,0.006,70372.0,70371.0,0.07105125]
[1771129143897,0.56229996,70378.0,70370.0,1e-08]
[1771129144107,0.00012,70380.0,70370.0,0.00100001]
[1771129144282,0.02444273,70379.0,70370.0,0.00100001]
[1771129144501,0.02444273,70379.0,70372.0,0.07105007]
[1771129144676,0.02444273,70379.0,70370.0,1e-08]
[1771129145001,0.02444273,70379.0,70372.0,0.0710507]
[1771129145397,0.02444273,70379.0,70373.0,0.07104928]
[1771129145577,0.02544273,70379.0,70373.0,0.07104928]
[1771129145989,0.006,70372.0,70371.0,0.006]
[1771129146195,0.02444273,70378.0,70370.0,1e-08]
[1771129146462,0.001,70379.0,70370.0,1e-08]
[1771129146782,0.02444273,70373.0,70370.0,1e-08]
[1771129147136,0.03044273,70372.0,70371.0,0.006]
[1771129147330,0.11619465,70372.0,70370.0,1e-08]
[1771129147760,0.02444273,70371.0,70370.0,0.01100001]
[1771129148964,0.02444273,70371.0,70370.0,1e-08]
[1771129149198,0.02444273,70371.0,70370.0,0.00020001]
[1771129149760,0.02444273,70371.0,70362.0,0.0002]
[1771129150097,0.02487577,70371.0,70362.0,0.0002]
[1771129150298,0.07105464,70369.0,70362.0,0.07126107]
[1771129150642,0.02444273,70370.0,70360.0,0.00012]
[1771129150873,0.02444273,70365.0,70360.0,0.00012]
[1771129151067,0.07105839,70365.0,70360.0,0.00012]
[1771129151322,0.02444273,70364.0,70360.0,0.00012]
[1771129152651,0.03044273,70364.0,70360.0,0.00012]
[1771129152848,0.02444273,70364.0,70360.0,0.00012]
[1771129153354,0.0241683,70362.0,70360.0,0.00012]
[1771129153516,0.0241683,70362.0,70356.0,0.07106714]
[1771129153712,0.0241683,70362.0,70355.0,0.0002]
[1771129153980,0.006,70364.0,70355.0,0.0002]
[1771129153981,0.29023972,70364.0,70355.0,0.0002]
[1771129154195,0.0241683,70360.0,70355.0,0.0002]
[1771129154503,0.0241683,70360.0,70355.0,0.07126783]
[1771129154717,0.0241683,70360.0,70355.0,0.0002]
[1771129154868,0.07106714,70356.0,70355.0,0.0002]
[1771129155252,0.07106714,70356.0,70343.0,0.28431855]
[1771129155253,0.0241683,70354.0,70340.0,0.00012]
[1771129155456,0.09524793,70344.0,70340.0,0.00012]
[1771129155661,0.33417452,70350.0,70323.0,0.01413507]
[1771129155833,0.33417452,70350.0,70320.0,0.00012]
[1771129155834,0.30852488,70335.0,70320.0,0.00012]
[1771129156038,0.5588012,70337.0,70320.0,0.07122352]
[1771129156237,0.0241683,70323.0,70320.0,0.00012]
[1771129156445,0.0711015,70322.0,70320.0,0.00012]
[1771129156655,0.07109644,70328.0,70320.0,0.00012953]
[1771129156851,0.09527067,70322.0,70320.0,0.00012953]
[1771129157055,0.07110251,70321.0,70320.0,0.00012953]
[1771129157301,0.00012,70330.0,70310.0,0.00012]
[1771129157302,0.07110584,70318.0,70310.0,0.00012]
[1771129157496,0.07110441,70320.0,70311.0,0.07111252]
[1771129157699,0.5588012,70325.0,70310.0,0.00024982]
[1771129157700,0.0241683,70318.0,70310.0,0.00024982]
[1771129158031,0.0241683,70315.0,70310.0,0.00024982]
[1771129158210,0.0241683,70317.0,70310.0,0.00024982]
[1771129158421,0.001,70321.0,70304.0,0.58921968]
[1771129158422,0.34032,70319.0,70304.0,0.58921968]
[1771129158589,0.3644883,70319.0,70304.0,0.58921968]
[1771129158939,0.00012,70340.0,70315.0,0.01413507]
[1771129159159,0.00012,70340.0,70310.0,0.00012]
[1771129159160,0.5588012,70339.0,70320.0,0.00012]
[1771129159436,0.09526301,70329.0,70320.0,0.07122254]
[1771129159736,0.0241683,70329.0,70320.0,0.00012]
[1771129159936,0.07109234,70332.0,70322.0,0.07110128]
[1771129160137,0.0241683,70332.0,70322.0,0.07110054]
[1771129160344,0.00024985,70340.0,70327.0,0.07109552]
[1771129160345,0.09525561,70337.0,70327.0,0.07109552]
[1771129160551,0.07108735,70336.0,70320.0,0.58933968]
[1771129160706,0.0241683,70337.0,70320.0,0.58933968]
[1771129160912,0.07108937,70334.0,70325.0,0.07109828]
[1771129161202,0.0710935,70330.0,70321.0,0.07110251]
[1771129161406,0.00024985,70340.0,70339.0,0.07108432]
[1771129161574,0.001,70337.0,70334.0,0.0710892]
[1771129161973,0.006,70334.0,70333.0,0.07109038]
[1771129162184,0.00024985,70340.0,70333.0,0.07109038]
[1771129162544,0.00524985,70340.0,70339.0,0.004]
[1771129162755,0.00024985,70340.0,70332.0,0.07109137]
[1771129162955,0.07108663,70337.0,70329.0,0.02332071]
[1771129163157,0.0710873,70337.0,70326.0,0.07109661]
[1771129163383,0.0241683,70338.0,70331.0,0.07109231]
[1771129163705,0.55905105,70340.0,70327.0,0.02332071]
[1771129163706,0.00024985,70340.0,70327.0,0.02332071]
[1771129163883,0.07107539,70348.0,70337.0,0.07108634]
[1771129164080,0.00012,70350.0,70336.0,0.02332071]
[1771129164280,0.00012,70350.0,70340.0,0.02332071]
[1771129164923,0.00012,70350.0,70344.0,0.07107911]
[1771129165090,0.00012,70350.0,70343.0,0.07108021]
[1771129165312,0.07107509,70349.0,70340.0,0.07108236]
[1771129165481,0.07119416,70350.0,70340.0,0.07108236]
[1771129165698,0.07108045,70343.0,70340.0,0.002]
[1771129165893,0.09524665,70345.0,70337.0,0.071086]
[1771129166301,0.0241683,70345.0,70335.0,0.07108791]
[1771129166511,0.0241683,70345.0,70333.0,0.34032]
[1771129166757,0.0241683,70344.0,70333.0,0.34032]
[1771129166947,0.07108816,70336.0,70331.0,0.0002]
[1771129167127,0.07109139,70332.0,70331.0,0.00032985]
[1771129167333,0.5588012,70338.0,70326.0,0.34032]
[1771129167533,0.62988951,70336.0,70328.0,0.07109521]
[1771129167739,0.0952567,70335.0,70326.0,0.41141646]
[1771129168075,0.0952567,70335.0,70327.0,0.0710962]
[1771129168281,0.001,70332.0,70326.0,0.34032]
[1771129168483,0.07109862,70325.0,70320.0,0.00012]
[1771129168635,0.07109913,70325.0,70320.0,0.00012]
[1771129168860,0.0241683,70329.0,70320.0,0.00012]
[1771129169074,0.00012997,70338.0,70321.0,0.58921968]
[1771129169272,0.09308914,70335.0,70327.0,0.0710963]
[1771129169497,0.022,70335.0,70326.0,0.002]
[1771129169693,0.0930884,70335.0,70326.0,0.002]
[1771129169937,0.022,70335.0,70326.0,0.002]
[1771129170137,0.0710882,70336.0,70324.0,0.09441938]
[1771129170356,0.09538461,70338.0,70324.0,0.02332071]
[1771129170527,0.02429827,70338.0,70324.0,0.02332071]
[1771129170706,0.07109147,70332.0,70324.0,0.09441992]
[1771129170901,0.0710906,70333.0,70324.0,0.02332071]
[1771129171102,0.07109148,70332.0,70325.0,0.07109838]
[1771129171303,0.07108852,70335.0,70325.0,0.07109838]
[1771129171504,0.07108852,70335.0,70324.0,0.02332071]
[1771129171505,0.07108852,70335.0,70326.0,0.07109732]
[1771129171687,0.00012997,70338.0,70330.0,0.02332071]
[1771129172027,0.0241683,70345.0,70336.0,0.07108645]
[1771129172326,0.09524673,70345.0,70337.0,0.07108549]
[1771129172476,0.09524686,70345.0,70336.0,0.07108735]
[1771129172672,0.07108214,70342.0,70333.0,0.07109028]
[1771129172900,0.07108058,70343.0,70334.0,0.07108907]
[1771129173071,0.0461683,70345.0,70336.0,0.003]
[1771129173308,0.11724756,70345.0,70336.0,0.003]
[1771129173471,0.0461683,70345.0,70336.0,0.003]
[1771129173671,0.07108004,70344.0,70336.0,0.07408711]
[1771129174135,0.0004,70340.0,70336.0,0.003]
[1771129174423,0.0004,70340.0,70337.0,0.07108632]
[1771129174630,0.0004,70340.0,70335.0,0.07108751]
[1771129175208,0.0004,70340.0,70330.0,0.00012]
[1771129175412,0.0241683,70335.0,70330.0,0.00024997]
[1771129175613,0.0241683,70334.0,70330.0,0.00024997]
[1771129177646,0.008,70334.0,70331.0,0.07109154]
[1771129177949,0.5829695,70339.0,70332.0,0.07109139]
[1771129178147,0.0241683,70339.0,70332.0,0.07109139]
[1771129178353,0.011,70334.0,70332.0,0.07109139]
[1771129178555,0.0241683,70339.0,70332.0,0.07109139]
[1771129178753,0.09525264,70339.0,70332.0,0.07109109]
[1771129178974,0.01,70334.0,70331.0,0.07309145]
[1771129179146,0.09525264,70339.0,70332.0,0.07109106]
[1771129179468,0.0241683,70339.0,70332.0,0.07109106]
[1771129179680,0.0251683,70339.0,70332.0,0.07109106]
[1771129179892,0.0251683,70339.0,70330.0,0.00024997]
[1771129180083,0.0241683,70339.0,70330.0,0.00024997]
[1771129180439,0.001,70339.0,70334.0,0.07108926]
[1771129181063,0.001,70339.0,70335.0,0.07108817]
[1771129181312,0.004,70339.0,70334.0,0.07108926]
[1771129181509,0.001,70339.0,70335.0,0.07108811]
[1771129181758,0.001,70339.0,70330.0,0.00024997]
[1771129181964,0.003,70339.0,70336.0,0.07108709]
[1771129182177,0.0004,70340.0,70337.0,0.07108562]
[1771129182396,0.003,70339.0,70336.0,0.07108706]
[1771129182783,0.003,70339.0,70335.0,0.07108814]
[1771129183468,0.003,70339.0,70334.0,0.07608907]
[1771129183688,0.003,70339.0,70334.0,0.005]
[1771129183897,0.004,70339.0,70334.0,0.005]
[1771129184113,0.34032,70347.0,70331.0,0.02299432]
[1771129184375,0.07147556,70348.0,70339.0,0.0710837]
[1771129184585,0.004,70339.0,70335.0,0.02299432]
[1771129184792,0.02277115,70343.0,70333.0,0.07108942]
[1771129185024,0.0004,70348.0,70333.0,0.02299432]
[1771129185248,0.00012,70350.0,70336.0,0.55449963]
[1771129185420,0.00012,70350.0,70347.0,0.07107599]
[1771129185645,0.00012,70350.0,70349.0,0.07107421]
[1771129185860,0.00012,70360.0,70349.0,0.07107421]
[1771129186061,0.07106505,70359.0,70351.0,0.07107192]
[1771129186282,0.07118407,70360.0,70352.0,0.07107044]
[1771129186493,0.00012,70360.0,70349.0,0.07107385]
[1771129186698,0.07106638,70357.0,70349.0,0.07107331]
[1771129186925,0.00012,70360.0,70346.0,0.07107724]
[1771129187130,0.00012,70360.0,70345.0,0.02299432]
[1771129187131,0.07106411,70359.0,70345.0,0.02299432]
[1771129187298,0.07118322,70360.0,70345.0,0.02299432]
[1771129187506,0.07106491,70359.0,70351.0,0.07107207]
[1771129187707,0.02277115,70359.0,70341.0,0.34036]
[1771129187910,0.0710732,70350.0,70349.0,0.001]
[1771129188317,0.0710732,70350.0,70343.0,0.07108014]
[1771129188855,0.02277115,70354.0,70341.0,0.34036]
[1771129189056,0.07107706,70347.0,70341.0,0.34036]
[1771129189415,0.09384669,70348.0,70339.0,0.07108422]
[1771129189616,0.02277115,70349.0,70332.0,0.34056]
[1771129189801,0.59833516,70349.0,70332.0,0.34056]
[1771129190006,0.02277115,70344.0,70336.0,0.07108665]
[1771129190221,0.02277115,70343.0,70332.0,0.0002]
[1771129190430,0.02277115,70343.0,70336.0,0.07108652]
[1771129190662,0.34248,70350.0,70332.0,0.0002]
[1771129190867,0.07108099,70343.0,70334.0,0.07108845]
[1771129191067,0.07108423,70340.0,70332.0,0.07129068]
[1771129191276,0.09385517,70340.0,70332.0,0.07329068]
[1771129191943,0.59833516,70342.0,70332.0,0.0022]
[1771129192267,0.02277115,70340.0,70332.0,0.0002]
[1771129192478,0.02277115,70340.0,70332.0,0.0012]
[1771129192479,0.07108549,70338.0,70332.0,0.0012]
[1771129192687,0.07108452,70339.0,70332.0,0.0012]
[1771129192688,0.02277115,70336.0,70332.0,0.0012]
[1771129193327,0.02277115,70335.0,70332.0,0.0012]
[1771129193544,0.001,70342.0,70335.0,0.07108762]
[1771129193762,0.07108628,70338.0,70332.0,0.02319432]
[1771129193974,0.003,70342.0,70335.0,0.07108747]
[1771129194176,0.001,70342.0,70335.0,0.07108747]
[1771129194379,0.07108503,70339.0,70332.0,0.07129136]
[1771129194581,0.003,70335.0,70332.0,0.0112]
[1771129194783,0.07108503,70339.0,70332.0,0.0002]
[1771129195170,0.002,70342.0,70335.0,0.007]
[1771129195386,0.07108109,70343.0,70334.0,0.07108919]
[1771129195593,0.07108109,70343.0,70332.0,0.07128955]
[1771129195594,0.02317115,70348.0,70332.0,0.28456412]
[1771129195799,0.02277115,70346.0,70333.0,0.07108951]
[1771129196028,0.00012,70355.0,70332.0,0.0002]
[1771129196237,0.00013002,70355.0,70347.0,0.07107539]
[1771129196443,0.00025002,70355.0,70353.0,0.07106946]
[1771129196647,0.00025002,70355.0,70349.0,0.07107325]
[1771129196852,0.00025002,70355.0,70350.0,0.07107307]
[1771129197083,0.07107118,70352.0,70345.0,0.02299432]
[1771129197291,0.02277115,70354.0,70340.0,0.00012]
[1771129197491,0.02277115,70347.0,70340.0,0.07120309]
[1771129197692,0.07107141,70352.0,70341.0,0.28432919]
[1771129197892,0.001,70346.0,70343.0,0.07107996]
[1771129198100,0.001,70346.0,70344.0,0.07107912]
[1771129198400,0.02277115,70354.0,70346.0,0.07107646]
[1771129198604,0.00012,70352.0,70346.0,0.07107646]
[1771129199158,0.00012,70352.0,70349.0,0.0710733]
[1771129199458,0.006,70354.0,70346.0,0.02299432]
[1771129199667,0.00012,70353.0,70347.0,0.07107588]
[1771129199851,0.00012,70353.0,70348.0,0.07107515]
[1771129200259,0.00012,70353.0,70347.0,0.07107565]
[1771129200484,0.00012,70353.0,70348.0,0.07107522]
[1771129200692,0.003,70354.0,70350.0,0.07107237]
[1771129200887,0.02289115,70354.0,70340.0,0.00012]
[1771129201087,0.02277115,70353.0,70346.0,0.07107642]
[1771129201330,0.02277115,70353.0,70340.0,0.00012]
[1771129201331,0.07107747,70346.0,70340.0,0.00012]
[1771129201517,0.07107637,70347.0,70340.0,0.00012]
[1771129201725,0.07107575,70348.0,70340.0,0.00012]
[1771129201935,0.07107717,70347.0,70340.0,0.00012]
[1771129202132,0.00012,70348.0,70332.0,0.02319432]
[1771129202337,0.33444482,70342.0,70320.0,0.00012]
[1771129202479,0.07109674,70327.0,70320.0,0.00012]
[1771129202690,0.02277115,70331.0,70320.0,0.00012]
[1771129202895,0.59833516,70330.0,70320.0,0.00012]
[1771129203096,0.28441884,70319.0,70305.0,0.02299432]
[1771129203319,0.62110631,70320.0,70309.0,0.07111463]
[1771129203520,0.00012,70319.0,70300.0,0.05600717]
[1771129203831,0.00012,70319.0,70310.0,0.00024997]
[1771129204030,0.07110686,70317.0,70310.0,0.00024997]
[1771129204274,0.07111262,70311.0,70300.0,0.05600717]
[1771129204485,0.07111384,70310.0,70300.0,0.05600717]
[1771129204685,0.07111585,70308.0,70300.0,0.03301285]
[1771129204886,0.59833516,70313.0,70307.0,0.07111658]
[1771129205117,0.66944778,70311.0,70310.0,0.003]
[1771129205295,0.011,70319.0,70310.0,0.003]
[1771129205600,0.07111068,70313.0,70310.0,0.003]
[1771129205896,0.07110967,70314.0,70310.0,0.003]
[1771129206303,0.07110884,70315.0,70306.0,0.07111764]
[1771129206504,0.07110884,70315.0,70303.0,0.000422]
[1771129206505,0.34003999,70315.0,70311.0,0.07111237]
[1771129206722,0.34003999,70315.0,70309.0,0.0711143]
[1771129207040,0.34003999,70315.0,70304.0,0.55449963]
[1771129207041,0.34003999,70315.0,70310.0,0.0711135]
[1771129207233,0.011,70314.0,70310.0,0.02599432]
[1771129207402,0.001,70313.0,70310.0,0.02599432]
[1771129207815,0.011,70314.0,70310.0,0.09710782]
[1771129208021,0.00012,70320.0,70307.0,4.5e-05]
[1771129208224,0.00012,70318.0,70307.0,4.5e-05]
[1771129208392,0.07110717,70317.0,70308.0,0.0941091]
[1771129208591,0.07110717,70317.0,70310.0,0.07111359]
[1771129208872,0.00012,70320.0,70316.0,0.07110665]
[1771129209283,0.07109684,70327.0,70319.0,0.07110372]
[1771129209284,0.38873657,70327.0,70319.0,0.07110372]
[1771129209628,0.00012,70326.0,70319.0,0.07110372]
[1771129209849,0.00012,70326.0,70313.0,0.02299432]
[1771129210079,0.003,70320.0,70316.0,0.002]
[1771129210284,0.00012,70326.0,70317.0,0.0711057]
[1771129210638,0.00012,70326.0,70320.0,0.02299432]
[1771129210843,0.00012,70326.0,70319.0,0.02499432]
[1771129211049,0.07109757,70326.0,70319.0,0.02299432]
[1771129211255,0.003,70320.0,70316.0,0.001]
[1771129211622,0.003,70320.0,70312.0,0.02113932]
[1771129212038,0.003,70320.0,70318.0,0.07110533]
[1771129212256,0.003,70320.0,70315.0,0.07110784]
[1771129212449,0.003,70320.0,70317.0,0.07110584]
[1771129212691,0.003,70320.0,70319.0,0.07110453]
[1771129212891,0.07110049,70323.0,70312.0,0.02113932]
[1771129213090,0.55063196,70324.0,70317.0,0.07110642]
[1771129213261,0.55063196,70324.0,70310.0,0.00012]
[1771129213262,0.07109847,70325.0,70320.0,0.001]
[1771129213463,0.07121948,70324.0,70316.0,0.07110676]
[1771129213670,0.07121948,70324.0,70312.0,0.07111161]
[1771129213671,0.00012,70324.0,70312.0,0.07111161]
[1771129213873,0.00012,70324.0,70322.0,0.07110056]
[1771129215081,0.00012,70330.0,70310.0,0.61901533]
[1771129215281,0.00024,70330.0,70326.0,0.0710967]
[1771129215482,0.00024,70330.0,70325.0,0.07109775]
[1771129215892,0.00024,70330.0,70324.0,0.07109849]
[1771129216101,0.00012,70330.0,70323.0,0.07109849]
[1771129216316,0.00012,70330.0,70325.0,0.07109796]
[1771129216725,0.07121533,70329.0,70316.0,0.30925532]
[1771129216936,0.00012,70329.0,70325.0,0.005]
[1771129217146,0.00012,70329.0,70323.0,0.07110005]
[1771129217369,0.00012,70329.0,70325.0,0.02482741]
[1771129217578,0.07321412,70330.0,70325.0,0.003]
[1771129217780,0.07109548,70328.0,70321.0,0.07110249]
[1771129217983,0.07109548,70328.0,70325.0,0.005]
[1771129217984,0.07109724,70327.0,70325.0,0.005]
[1771129218402,0.07109669,70327.0,70319.0,0.07110367]
[1771129218610,0.00012,70326.0,70320.0,0.07110325]
[1771129219015,0.07109669,70327.0,70319.0,0.07110367]
[1771129219222,0.00012,70326.0,70320.0,0.07110352]
[1771129219429,0.00012,70326.0,70317.0,4.5e-05]
[1771129219637,0.00012,70326.0,70325.0,0.003]
[1771129219842,0.00012,70326.0,70321.0,0.09592938]
[1771129220064,0.00012,70326.0,70317.0,4.5e-05]
[1771129220269,0.0711003,70324.0,70319.0,0.018]
[1771129220475,0.0711003,70324.0,70317.0,4.5e-05]
[1771129220476,0.07110164,70322.0,70317.0,4.5e-05]
[1771129221095,0.00012,70322.0,70317.0,4.5e-05]
[1771129222366,0.07110113,70323.0,70317.0,4.5e-05]
[1771129222367,0.07110061,70323.0,70317.0,4.5e-05]
[1771129222574,0.07109947,70325.0,70317.0,0.07110656]
[1771129222777,0.07109947,70325.0,70317.0,0.09010656]
[1771129222997,0.07109947,70325.0,70318.0,0.07110551]
[1771129223466,0.005,70322.0,70318.0,0.07110551]
[1771129223653,0.07109947,70325.0,70318.0,0.07110551]
[1771129224056,0.0710996,70324.0,70317.0,0.08910621]
[1771129224235,0.0710996,70324.0,70317.0,0.07110621]
[1771129224615,0.005,70322.0,70318.0,0.018]
[1771129225002,0.005,70322.0,70318.0,0.08910512]
[1771129225255,0.005,70322.0,70319.0,0.07110452]
[1771129225597,0.005,70322.0,70318.0,0.018]
[1771129225803,0.00052,70330.0,70318.0,0.02482741]
[1771129226047,0.00052,70330.0,70319.0,0.07110453]
[1771129226200,0.00052,70330.0,70320.0,0.02482741]
[1771129226428,0.00052,70330.0,70321.0,0.2844088]
[1771129226626,0.00052,70330.0,70326.0,0.0710974]
[1771129226825,0.00052,70330.0,70325.0,0.07109821]
[1771129227084,0.00052,70330.0,70327.0,0.07109585]
[1771129227228,0.55103196,70338.0,70326.0,0.02482741]
[1771129227229,0.0004,70338.0,70326.0,0.02482741]
[1771129227576,0.00052997,70338.0,70331.0,0.07109234]
[1771129227727,0.001,70330.0,70329.0,0.09592183]
[1771129228115,0.00052997,70338.0,70332.0,0.07109089]
[1771129228318,0.00052997,70338.0,70332.0,0.07109048]
[1771129229107,0.00052997,70338.0,70331.0,0.07109215]
[1771129229448,0.3404,70341.0,70326.0,0.001]
[1771129229449,0.31988448,70341.0,70332.0,0.02482741]
[1771129229649,0.34385178,70341.0,70330.0,0.00012]
[1771129229896,0.07109934,70325.0,70320.0,0.00012]
[1771129230100,0.07110048,70324.0,70314.0,0.07110893]
[1771129230311,0.07110064,70323.0,70314.0,0.07110893]
[1771129230518,0.00012,70330.0,70328.0,0.07109487]
[1771129230672,0.00012,70330.0,70329.0,0.07109442]
[1771129230870,0.00012,70330.0,70325.0,0.07109847]
[1771129231095,0.00012,70330.0,70326.0,0.07109746]
[1771129231273,0.00012,70330.0,70327.0,0.07109594]
[1771129231672,0.00012,70330.0,70328.0,0.07109485]
[1771129232074,0.00012,70330.0,70329.0,0.07109442]
[1771129232278,0.00012,70330.0,70327.0,0.07109594]
[1771129232479,0.00012,70330.0,70323.0,0.28439969]
[1771129232690,0.00012,70330.0,70326.0,0.07109671]
[1771129233251,0.00312,70330.0,70325.0,0.07209847]
[1771129233455,0.00012,70330.0,70323.0,0.02482741]
[1771129233606,0.00012,70330.0,70329.0,0.07109442]
[1771129233783,0.00012,70330.0,70328.0,0.07109524]
[1771129233987,0.00012,70330.0,70323.0,0.02482741]
[1771129234420,0.00112,70330.0,70328.0,0.07109452]
[1771129234624,0.00012,70330.0,70325.0,0.07109808]
[1771129235023,0.00012,70330.0,70329.0,0.07109442]
[1771129235391,0.00012,70330.0,70327.0,0.07109632]
[1771129235598,0.00012,70330.0,70327.0,0.07109644]
[1771129235849,0.00012,70330.0,70328.0,0.07109522]
[1771129236051,0.00312,70330.0,70328.0,0.07209522]
[1771129236253,0.00012,70330.0,70328.0,0.07109522]
[1771129236757,0.00012,70330.0,70327.0,0.07109617]
[1771129237058,0.00012,70330.0,70324.0,0.07109854]
[1771129237291,0.00112,70330.0,70324.0,0.07109875]
[1771129237465,0.00012,70330.0,70323.0,0.07109875]
[1771129237667,0.00012,70330.0,70325.0,0.07109766]
[1771129237887,0.00012,70330.0,70324.0,0.07109934]
[1771129238089,0.00012,70330.0,70324.0,0.07109936]
[1771129238281,0.49370867,70334.0,70314.0,0.95019819]
[1771129238421,0.0239673,70327.0,70321.0,0.0002]
[1771129238626,0.00262107,70327.0,70321.0,0.0002]
[1771129238823,0.07149355,70330.0,70321.0,0.0002]
[1771129239051,0.0239673,70327.0,70320.0,0.07110314]
[1771129239388,0.00262107,70327.0,70321.0,0.07110195]
[1771129239591,0.07109442,70329.0,70314.0,0.28443617]
[1771129239592,0.07109448,70329.0,70314.0,0.28443617]
[1771129239914,0.07109545,70328.0,70320.0,0.07110343]
[1771129240140,0.07109752,70326.0,70318.0,0.0711047]
[1771129240373,0.04975136,70326.0,70318.0,0.0711047]
[1771129240584,0.64569542,70328.0,70320.0,0.0711034]
[1771129240801,0.57459926,70328.0,70313.0,0.02482741]
[1771129241015,0.64569496,70328.0,70320.0,0.07110344]
[1771129241506,0.64569496,70328.0,70313.0,0.02482741]
[1771129241507,0.07509836,70326.0,70318.0,0.07110536]
[1771129241701,0.07109836,70326.0,70318.0,0.07110536]
[1771129241919,0.07109656,70327.0,70317.0,0.07110645]
[1771129241920,0.58017781,70324.0,70317.0,0.07110645]
[1771129242131,0.58017781,70324.0,70308.0,0.0002]
[1771129242349,0.03597894,70329.0,70315.0,0.07110848]
[1771129242540,0.60276939,70322.0,70315.0,0.07110848]
[1771129242750,0.60226939,70322.0,70315.0,0.07110848]
[1771129242985,0.60226939,70322.0,70313.0,0.07111046]
[1771129243129,0.67337113,70322.0,70315.0,0.07110819]
[1771129243327,0.07110353,70320.0,70313.0,0.07111039]
[1771129243902,0.6733709,70322.0,70315.0,0.07110836]
[1771129244120,0.60226939,70322.0,70313.0,0.002]
[1771129244334,0.60326939,70322.0,70313.0,0.002]
[1771129244547,0.60226939,70322.0,70310.0,0.28457167]
[1771129244752,0.001,70320.0,70313.0,0.002]
[1771129245000,0.0711053,70319.0,70311.0,0.07111169]
[1771129245199,0.02463564,70320.0,70310.0,0.00012]
[1771129245325,0.02463564,70320.0,70314.0,4.5e-05]
[1771129245527,0.02463564,70320.0,70311.0,0.07111205]
[1771129245528,0.686537,70319.0,70312.0,0.07111142]
[1771129245734,0.0711082,70316.0,70308.0,0.0002]
[1771129245953,0.66190358,70317.0,70308.0,0.0002]
[1771129246158,0.66190358,70317.0,70309.0,0.07111465]
[1771129246159,0.59079672,70317.0,70309.0,0.07111465]
[1771129246373,0.07110771,70316.0,70308.0,0.0713137]
[1771129246617,0.02463564,70313.0,70295.0,0.02320221]
[1771129246761,0.071114,70310.0,70295.0,0.02320221]
[1771129246964,0.071114,70310.0,70307.0,0.0002]
[1771129247167,0.59079672,70310.0,70307.0,0.0002]
[1771129247363,0.68654614,70310.0,70309.0,0.008]
[1771129247626,0.68654614,70310.0,70307.0,0.0002]
[1771129247838,0.0711176,70307.0,70303.0,0.0002]
[1771129247993,0.07111465,70309.0,70303.0,0.0102]
[1771129248203,0.61543236,70310.0,70303.0,0.0002]
[1771129248398,0.61543236,70310.0,70303.0,0.07131987]
[1771129248812,0.0711134,70311.0,70303.0,0.07131987]
[1771129249039,0.07111385,70310.0,70303.0,0.0002]
[1771129249187,0.66191328,70308.0,70303.0,0.0002]
[1771129249599,0.59079672,70308.0,70303.0,0.0002]
[1771129250101,0.07111768,70306.0,70303.0,0.0152]
[1771129250502,0.07111768,70306.0,70303.0,0.0002]
[1771129250693,0.07111768,70306.0,70303.0,0.0122]
[1771129250895,0.07111876,70305.0,70303.0,0.0002]
[1771129251144,0.07111808,70306.0,70303.0,0.0002]
[1771129251346,0.07411808,70306.0,70303.0,0.0122]
[1771129251701,0.07111916,70305.0,70303.0,0.0122]
[1771129252037,0.07411808,70306.0,70303.0,0.0122]
[1771129252245,0.07111869,70305.0,70300.0,0.03301285]
[1771129252420,0.0711197,70304.0,70300.0,0.03314289]
[1771129252662,0.07111883,70305.0,70300.0,0.03314289]
[1771129252865,0.41451843,70306.0,70303.0,0.013]
[1771129253118,0.41151843,70306.0,70300.0,0.03314289]
[1771129253516,0.003,70304.0,70300.0,0.04614289]
[1771129253655,0.41151843,70306.0,70300.0,0.03314289]
[1771129254061,0.59079672,70305.0,70295.0,4.5e-05]
[1771129254257,0.071121,70303.0,70292.0,0.02324721]
[1771129254443,0.07112212,70302.0,70293.0,0.07112987]
[1771129254978,0.07112297,70301.0,70293.0,0.07112987]
[1771129255180,0.07112184,70302.0,70292.0,0.02324721]
[1771129255386,0.07112184,70302.0,70294.0,0.07112905]
[1771129255706,0.07112184,70302.0,70295.0,0.0002]
[1771129255888,0.07112146,70303.0,70295.0,0.0002]
[1771129256092,0.07112282,70301.0,70300.0,0.003]
[1771129256251,0.07112282,70301.0,70295.0,0.0002]
[1771129256699,0.07112377,70300.0,70295.0,0.0002]
[1771129257074,0.07112304,70301.0,70295.0,0.0002]
[1771129257279,0.07112375,70300.0,70295.0,0.0002]
[1771129258143,0.009,70300.0,70296.0,0.07112771]
[1771129258443,0.009,70300.0,70297.0,0.07112595]
[1771129258593,0.0001299,70305.0,70299.0,0.07112387]
[1771129258792,0.0001299,70305.0,70299.0,0.07112432]
[1771129259642,0.0001299,70305.0,70302.0,0.07112159]
[1771129259846,0.0001299,70305.0,70301.0,0.02320221]
[1771129260275,0.0001299,70305.0,70299.0,0.07112457]
[1771129260432,0.0004,70306.0,70296.0,0.02320221]
[1771129260637,0.00012,70320.0,70310.0,0.02320221]
[1771129260834,0.00012,70320.0,70300.0,0.00012]
[1771129261033,0.07111169,70312.0,70308.0,0.02310221]
[1771129261237,0.01,70305.0,70302.0,4.5e-05]
[1771129261490,0.00012,70320.0,70310.0,0.02320221]
[1771129261683,0.34056,70320.0,70314.0,0.07110935]
[1771129261886,0.41166383,70320.0,70313.0,0.02320221]